bitfinex/quotes_BTCUSD_20250403
["timestamp","ask_amount","ask_price","bid_price","bid_amount"]
[1743659625936,0.02931015,83429.0,83428.0,0.04643105]
[1743659627373,0.01732415,83429.0,83428.0,0.04643105]
[1743659627797,0.02931015,83429.0,83428.0,0.04643105]
[1743659630703,0.01732415,83429.0,83428.0,0.04643105]
[1743659631030,0.02931015,83429.0,83428.0,0.04643105]
[1743659631434,0.02931015,83429.0,83428.0,0.00013105]
[1743659631643,0.0323055,83429.0,83428.0,0.00013105]
[1743659632886,0.1490611,83429.0,83428.0,0.00013105]
[1743659633086,0.14606575,83429.0,83428.0,0.00013105]
[1743659633682,0.14640275,83429.0,83428.0,0.00013105]
[1743659634399,0.48640275,83429.0,83428.0,0.00013105]
[1743659634752,0.53570275,83429.0,83428.0,0.00013105]
[1743659635734,0.95030239,83429.0,83428.0,0.00013105]
[1743659637696,0.95030239,83429.0,83420.0,5.5e-07]
[1743659637697,0.011987,83421.0,83420.0,5.5e-07]
[1743659637921,0.59175,83416.0,83415.0,7.7e-07]
[1743659638128,0.7085056,83416.0,83415.0,7.7e-07]
[1743659638365,0.7085056,83416.0,83401.0,0.004]
[1743659638366,0.251785,83404.0,83401.0,0.004]
[1743659638547,0.3685406,83404.0,83401.0,0.004]
[1743659638767,0.3858523,83404.0,83401.0,0.004]
[1743659638973,0.3858523,83404.0,83403.0,0.00046078]
[1743659639378,0.7258523,83404.0,83403.0,0.00046078]
[1743659663519,0.73700028,83404.0,83403.0,0.00046078]
[1743659665603,0.87268028,83404.0,83403.0,0.00046078]
[1743659674004,0.8615323,83404.0,83403.0,0.00046078]
[1743659682534,0.7258523,83404.0,83403.0,0.00046078]
[1743659689770,0.0173117,83404.0,83403.0,0.00046078]
[1743659689977,0.011989,83404.0,83403.0,0.00046078]
[1743659690179,0.02909044,83404.0,83403.0,0.00046078]
[1743659693935,0.14584604,83404.0,83403.0,0.00046078]
[1743659695540,0.14884139,83404.0,83403.0,0.00046078]
[1743659700341,0.48884139,83404.0,83403.0,0.00046078]
[1743659700571,0.48584604,83404.0,83403.0,0.00046078]
[1743659701825,0.49700865,83404.0,83403.0,0.00046078]
[1743659702329,0.63348865,83404.0,83403.0,0.00046078]
[1743659712176,0.63316865,83404.0,83403.0,0.00046078]
[1743659714195,0.01199,83402.0,83401.0,0.00386078]
[1743659714413,0.4687456,83402.0,83401.0,0.00386078]
[1743659714913,0.48582456,83402.0,83401.0,0.00386078]
[1743659724403,0.16570896,83402.0,83401.0,0.00386078]
[1743659724623,0.02906896,83402.0,83401.0,0.00386078]
[1743659725283,0.16566896,83402.0,83401.0,0.00386078]
[1743659725718,0.02906896,83402.0,83401.0,0.00386078]
[1743659727064,0.02906896,83402.0,83401.0,0.25565578]
[1743659727065,0.01707896,83402.0,83401.0,0.25565578]
[1743659727290,0.01707896,83402.0,83401.0,0.35005578]
[1743659727530,0.00046025,83404.0,83402.0,0.01199]
[1743659728010,0.01709551,83403.0,83402.0,0.01199]
[1743659728482,0.01709551,83403.0,83401.0,0.09842928]
[1743659734780,0.01709551,83403.0,83401.0,0.35022228]
[1743659734990,0.01709551,83403.0,83401.0,0.11041928]
[1743659735394,0.01709551,83403.0,83401.0,0.35022328]
[1743659735621,0.01709551,83403.0,83402.0,0.01199]
[1743659735793,0.01709551,83403.0,83402.0,0.05709]
[1743659736000,0.00046025,83404.0,83403.0,0.251788]
[1743659736836,0.00046025,83404.0,83403.0,0.300588]
[1743659741678,0.00079725,83404.0,83403.0,0.300588]
[1743659743168,0.00079725,83404.0,83403.0,0.4173436]
[1743659743379,0.00079725,83404.0,83403.0,0.89588445]
[1743659745583,0.00079725,83404.0,83403.0,0.90469416]
[1743659749769,0.00079725,83404.0,83403.0,1.01209975]
[1743659751772,0.00079725,83404.0,83403.0,1.00329004]
[1743659751976,0.00079725,83404.0,83403.0,0.98874919]
[1743659753224,0.00079725,83404.0,83403.0,0.8813436]
[1743659754080,0.22588525,83420.0,83413.0,0.251757]
[1743659754286,0.239757,83418.0,83413.0,0.011988]
[1743659754468,0.239757,83418.0,83413.0,0.251758]
[1743659754851,0.01741988,83417.0,83413.0,0.251758]
[1743659755065,0.01741988,83417.0,83410.0,0.011988]
[1743659755066,0.239762,83416.0,83410.0,0.011988]
[1743659755268,0.01741988,83417.0,83410.0,0.251766]
[1743659755463,0.01741988,83417.0,83408.0,0.251771]
[1743659755464,0.239762,83416.0,83408.0,0.251771]
[1743659755666,0.01741988,83417.0,83410.0,0.251767]
[1743659755871,0.239762,83416.0,83410.0,0.251767]
[1743659756207,0.251761,83413.0,83403.0,0.4146]
[1743659756416,0.239787,83408.0,83403.0,0.4146]
[1743659756766,0.239787,83408.0,83403.0,0.426589]
[1743659757979,9.378e-05,83407.0,83403.0,0.426589]
[1743659758345,9.378e-05,83407.0,83404.0,0.251785]
[1743659758724,0.239777,83411.0,83404.0,0.251785]
[1743659758913,0.01733042,83406.0,83404.0,0.251785]
[1743659759130,0.239777,83411.0,83404.0,0.251785]
[1743659759301,0.01733042,83405.0,83404.0,0.251785]
[1743659759501,0.239777,83411.0,83404.0,0.251785]
[1743659759707,0.01733042,83410.0,83404.0,0.251785]
[1743659760533,0.01733042,83410.0,83405.0,0.011989]
[1743659761114,0.239785,83408.0,83401.0,0.00402928]
[1743659761359,0.239797,83404.0,83401.0,0.00402928]
[1743659761812,0.217797,83404.0,83401.0,0.00402928]
[1743659763160,0.0173375,83403.0,83401.0,0.00402928]
[1743659763562,0.0173375,83403.0,83402.0,0.01199]
[1743659763989,0.239766,83415.0,83407.0,0.011989]
[1743659764203,0.239766,83415.0,83407.0,0.251774]
[1743659764204,0.239771,83413.0,83407.0,0.251774]
[1743659764506,0.239771,83413.0,83404.0,0.011989]
[1743659764724,0.239778,83411.0,83404.0,0.011989]
[1743659765135,0.239771,83413.0,83407.0,0.239788]
[1743659765533,0.239771,83413.0,83406.0,0.011989]
[1743659765772,0.000337,83410.0,83406.0,0.011989]
[1743659766593,0.000337,83410.0,83405.0,0.251782]
[1743659766797,0.000337,83410.0,83402.0,0.2519575]
[1743659766798,0.000337,83410.0,83402.0,0.0001685]
[1743659766944,0.251786,83404.0,83402.0,0.0001685]
[1743659769557,0.233786,83404.0,83402.0,0.0001685]
[1743659769883,0.245775,83404.0,83402.0,0.0001685]
[1743659771083,0.011989,83403.0,83402.0,0.0001685]
[1743659772175,0.245775,83404.0,83402.0,0.0001685]
[1743659776654,0.233786,83404.0,83402.0,0.0001685]
[1743659776865,0.239788,83407.0,83402.0,0.0001685]
[1743659777297,0.011988,83415.0,83404.0,0.011989]
[1743659777465,0.011988,83414.0,83405.0,0.011989]
[1743659777676,0.239782,83409.0,83402.0,0.0001685]
[1743659777879,0.239789,83407.0,83402.0,0.0001685]
[1743659778070,0.01722652,83406.0,83402.0,0.0001685]
[1743659778534,0.239793,83405.0,83402.0,0.0001685]
[1743659779044,0.239799,83403.0,83402.0,0.0001685]
[1743659779289,0.25702423,83403.0,83402.0,0.0001685]
[1743659779467,0.01722523,83403.0,83402.0,0.0001685]
[1743659779664,0.239793,83405.0,83402.0,0.0001685]
[1743659779902,0.01722652,83404.0,83402.0,0.0001685]
[1743659780955,0.251788,83403.0,83402.0,0.0001685]
[1743659781551,0.26864018,83403.0,83402.0,0.0001685]
[1743659783133,0.38539578,83403.0,83402.0,0.0001685]
[1743659783460,0.52047578,83403.0,83402.0,0.0001685]
[1743659783663,0.56957578,83403.0,83402.0,0.0001685]
[1743659788009,0.90957578,83403.0,83402.0,0.0001685]
[1743659788206,0.90957578,83403.0,83401.0,0.00402928]
[1743659788207,0.35199,83402.0,83401.0,7.8e-07]
[1743659788430,0.5661456,83402.0,83401.0,7.8e-07]
[1743659788635,0.58295895,83402.0,83401.0,7.8e-07]
[1743659789793,0.71803895,83402.0,83401.0,7.8e-07]
[1743659792735,0.66973895,83402.0,83401.0,7.8e-07]
[1743659793617,0.67001895,83402.0,83401.0,7.8e-07]
[1743659793812,0.62091895,83402.0,83401.0,7.8e-07]
[1743659794479,0.48555895,83402.0,83401.0,7.8e-07]
[1743659794923,0.62083895,83402.0,83401.0,7.8e-07]
[1743659795696,0.48555895,83402.0,83401.0,7.8e-07]
[1743659795914,0.28083895,83402.0,83401.0,7.8e-07]
[1743659797055,0.28083895,83402.0,83401.0,7.278e-05]
[1743659800612,0.62083895,83402.0,83401.0,7.278e-05]
[1743659800849,1.12893859,83402.0,83401.0,7.278e-05]
[1743659802181,1.12927559,83402.0,83401.0,7.278e-05]
[1743659803948,1.14790706,83402.0,83401.0,7.278e-05]
[1743659805335,1.01262706,83402.0,83401.0,7.278e-05]
[1743659805567,1.14782706,83402.0,83401.0,7.278e-05]
[1743659806000,1.14778706,83402.0,83401.0,7.278e-05]
[1743659812962,0.91912706,83402.0,83401.0,7.278e-05]
[1743659813174,1.14693906,83402.0,83401.0,7.278e-05]
[1743659813386,0.01715035,83402.0,83401.0,0.29956778]
[1743659813602,0.01715035,83402.0,83401.0,0.34896778]
[1743659813806,0.000337,83402.0,83401.0,0.34896778]
[1743659814426,0.000337,83402.0,83401.0,0.10916278]
[1743659814628,0.01701433,83402.0,83401.0,0.34896778]
[1743659814832,0.000337,83402.0,83401.0,0.34896778]
[1743659815246,0.000337,83402.0,83401.0,0.46572338]
[1743659815452,0.000337,83402.0,83401.0,0.48026423]
[1743659816929,0.000337,83402.0,83401.0,0.89486423]
[1743659817339,0.000337,83402.0,83401.0,0.90705706]
[1743659820262,0.000337,83402.0,83401.0,0.89251621]
[1743659820504,0.000337,83402.0,83401.0,0.77576061]
[1743659822755,0.000337,83402.0,83401.0,0.70217778]
[1743659822983,0.01705801,83402.0,83401.0,0.71416778]
[1743659823219,0.00040203,83402.0,83401.0,0.71416778]
[1743659823422,0.000337,83402.0,83401.0,0.71416778]
[1743659824195,0.000337,83402.0,83401.0,0.41467278]
[1743659824563,0.0173403,83402.0,83401.0,0.41467278]
[1743659824783,0.0173403,83402.0,83401.0,7.278e-05]
[1743659825006,0.0293303,83402.0,83401.0,7.278e-05]
[1743659826522,0.02930586,83402.0,83401.0,7.278e-05]
[1743659826986,0.02143202,83402.0,83401.0,7.278e-05]
[1743659827624,0.02139143,83402.0,83401.0,7.278e-05]
[1743659829357,0.13814703,83402.0,83401.0,7.278e-05]
[1743659830428,0.47814703,83402.0,83401.0,7.278e-05]
[1743659832010,0.48926623,83402.0,83401.0,7.278e-05]
[1743659832905,0.49399096,83402.0,83401.0,7.278e-05]
[1743659833328,0.48287176,83402.0,83401.0,7.278e-05]
[1743659835894,0.14287176,83402.0,83401.0,7.278e-05]
[1743659836100,0.19246711,83402.0,83401.0,7.278e-05]
[1743659836918,0.19280411,83402.0,83401.0,7.278e-05]
[1743659838279,0.14320876,83402.0,83401.0,7.278e-05]
[1743659840034,0.14620411,83402.0,83401.0,7.278e-05]
[1743659840248,0.99570375,83402.0,83401.0,7.8e-07]
[1743659840440,0.9927084,83402.0,83401.0,7.8e-07]
[1743659844091,1.00457281,83402.0,83401.0,7.8e-07]
[1743659848738,1.13973281,83402.0,83401.0,7.8e-07]
[1743659848954,1.09423281,83402.0,83401.0,7.8e-07]
[1743659849370,1.09423281,83402.0,83401.0,0.00016928]
[1743659850004,1.14213281,83402.0,83401.0,0.00016928]
[1743659854023,1.14829983,83402.0,83401.0,0.00016928]
[1743659862016,1.05029521,83402.0,83401.0,0.00016928]
[1743659862200,1.18525521,83402.0,83401.0,0.00016928]
[1743659863086,1.14809983,83402.0,83401.0,0.00016928]
[1743659863823,1.18526183,83402.0,83401.0,0.00016928]
[1743659864026,1.14809983,83402.0,83401.0,0.00016928]
[1743659864239,1.1852659,83402.0,83401.0,0.00016928]
[1743659865039,1.14809983,83402.0,83401.0,0.00016928]
[1743659865252,1.1852659,83402.0,83401.0,0.00016928]
[1743659868461,1.1373659,83402.0,83401.0,0.00016928]
[1743659868978,0.9530059,83402.0,83401.0,0.00016928]
[1743659869208,0.71079983,83402.0,83401.0,0.00016928]
[1743659869459,1.04463281,83402.0,83401.0,0.00016928]
[1743659873475,1.08183994,83402.0,83401.0,0.00016928]
[1743659875857,1.10046989,83402.0,83401.0,0.00016928]
[1743659880517,0.96550989,83402.0,83401.0,0.00016928]
[1743659880732,1.10046989,83402.0,83401.0,0.00016928]
[1743659880960,1.06326276,83402.0,83401.0,0.00016928]
[1743659881427,0.92830276,83402.0,83401.0,0.00016928]
[1743659881650,1.06326276,83402.0,83401.0,0.00016928]
[1743659882513,0.92830276,83402.0,83401.0,0.00016928]
[1743659882955,1.06326276,83402.0,83401.0,0.00016928]
[1743659883381,1.04463281,83402.0,83401.0,0.00016928]
[1743659884033,0.90967281,83402.0,83401.0,0.00016928]
[1743659884244,1.04463281,83402.0,83401.0,0.00016928]
[1743659884453,1.0327684,83402.0,83401.0,0.00016928]
[1743659885107,0.61816876,83402.0,83401.0,0.00016928]
[1743659886835,0.48320876,83402.0,83401.0,0.00016928]
[1743659889571,0.591803,83398.0,83397.0,0.0497]
[1743659889989,0.60569572,83398.0,83397.0,0.0497]
[1743659890563,0.60569572,83398.0,83389.0,0.0451]
[1743659890564,0.251827,83390.0,83389.0,0.0451]
[1743659890778,0.26573244,83390.0,83389.0,0.0451]
[1743659891161,0.26573244,83390.0,83389.0,0.095]
[1743659895591,0.26573244,83390.0,83389.0,0.0951685]
[1743659896017,0.01390544,83390.0,83389.0,0.3469985]
[1743659896221,0.239812,83399.0,83392.0,0.25182]
[1743659896421,0.01390226,83398.0,83393.0,0.047]
[1743659896849,0.01390226,83398.0,83393.0,0.05910856]
[1743659897263,0.01390226,83398.0,83394.0,0.011991]
[1743659897468,0.01390226,83398.0,83396.0,0.239818]
[1743659897689,0.43963572,83401.0,83397.0,0.0484]
[1743659897905,0.239811,83399.0,83397.0,0.0484]
[1743659898114,0.251801,83399.0,83397.0,0.0484]
[1743659898561,0.01389431,83398.0,83397.0,0.0484]
[1743659899020,0.43963572,83401.0,83397.0,0.0484]
[1743659899227,0.0138959,83398.0,83397.0,0.0484]
[1743659899406,0.43963572,83401.0,83397.0,0.0484]
[1743659899822,0.01391862,83400.0,83397.0,0.288216]
[1743659900225,0.01391862,83400.0,83397.0,0.300206]
[1743659900426,0.01391862,83400.0,83397.0,0.251806]
[1743659900726,0.01391862,83400.0,83399.0,0.01199]
[1743659900906,0.01391862,83400.0,83398.0,0.06159]
[1743659902835,0.01391862,83400.0,83398.0,0.0496]
[1743659904097,0.251801,83399.0,83398.0,0.0496]
[1743659904722,0.26571962,83399.0,83398.0,0.0496]
[1743659906401,0.239822,83396.0,83391.0,0.0464]
[1743659906611,0.01392816,83395.0,83391.0,0.0464]
[1743659907706,0.01392816,83395.0,83393.0,0.0001685]
[1743659909476,0.251816,83394.0,83393.0,0.0001685]
[1743659909938,0.26574257,83394.0,83393.0,0.0001685]
[1743659913696,0.25375157,83394.0,83393.0,0.0001685]
[1743659914764,0.01392657,83394.0,83393.0,0.0001685]
[1743659914989,0.251812,83396.0,83393.0,0.0001685]
[1743659915190,0.01388664,83395.0,83393.0,0.0001685]
[1743659917304,0.239825,83394.0,83393.0,0.0001685]
[1743659917532,0.01388664,83395.0,83393.0,0.0001685]
[1743659917770,0.01388823,83394.0,83393.0,0.0001685]
[1743659918110,0.239822,83396.0,83393.0,0.0001685]
[1743659918353,0.01388823,83394.0,83393.0,0.0001685]
[1743659918540,0.239822,83396.0,83393.0,0.0001685]
[1743659918739,0.01388823,83394.0,83393.0,0.0001685]
[1743659918947,0.239822,83396.0,83393.0,0.0001685]
[1743659919147,0.01388823,83394.0,83393.0,0.0001685]
[1743659919326,0.239822,83396.0,83393.0,0.0001685]
[1743659919525,0.01388823,83394.0,83393.0,0.0001685]
[1743659919737,0.239822,83396.0,83393.0,0.0001685]
[1743659920214,0.252131,83402.0,83397.0,0.251803]
[1743659920215,0.20016772,83401.0,83397.0,0.251803]
[1743659920424,0.20016772,83401.0,83400.0,0.01199]
[1743659921037,0.20016772,83401.0,83400.0,0.05739]
[1743659924093,0.20016772,83401.0,83400.0,0.0454]
[1743659924297,0.21215772,83401.0,83395.0,0.0487]
[1743659924525,0.239808,83400.0,83395.0,0.0487]
[1743659925724,0.239808,83400.0,83396.0,0.1074461]
[1743659928128,0.01388823,83399.0,83396.0,0.1074461]
[1743659928533,0.239813,83398.0,83396.0,0.1074461]
[1743659928845,0.01388982,83397.0,83396.0,0.1074461]
[1743659929087,0.239808,83400.0,83395.0,0.0487]
[1743659929369,0.01390291,83397.0,83395.0,0.0487]
[1743659929700,0.01390291,83396.0,83395.0,0.0487]
[1743659930127,0.239808,83400.0,83395.0,0.0487]
[1743659930369,0.01390609,83396.0,83393.0,0.0121595]
[1743659930592,0.239822,83395.0,83393.0,0.0001685]
[1743659930802,0.25372809,83395.0,83393.0,0.0001685]
[1743659931048,0.01390609,83395.0,83393.0,0.0001685]
[1743659931230,0.239814,83398.0,83393.0,0.0001685]
[1743659931657,0.01390609,83397.0,83393.0,0.0001685]
[1743659932090,0.01390609,83397.0,83396.0,0.01199]
[1743659932296,0.20016772,83401.0,83398.0,0.01199]
[1743659932732,0.239814,83398.0,83393.0,0.0001685]
[1743659933176,0.23982,83396.0,83393.0,0.0001685]
[1743659933377,0.23982,83397.0,83393.0,0.0001685]
[1743659934473,0.251809,83396.0,83393.0,0.0001685]
[1743659934712,0.239819,83396.0,83393.0,0.0001685]
[1743659941213,0.011991,83394.0,83393.0,0.0001685]
[1743659941417,0.251809,83396.0,83393.0,0.0001685]
[1743659941799,0.239825,83394.0,83393.0,0.0001685]
[1743659943334,0.25279274,83394.0,83393.0,0.0001685]
[1743659943537,0.26478374,83394.0,83393.0,0.0001685]
[1743659948756,0.31068374,83394.0,83393.0,0.0001685]
[1743659948959,0.42743934,83394.0,83393.0,0.0001685]
[1743659949161,0.47253934,83394.0,83393.0,0.0001685]
[1743659949373,0.81253934,83394.0,83393.0,0.0001685]
[1743659949591,1.22713898,83394.0,83393.0,0.0001685]
[1743659952479,1.22713898,83394.0,83386.0,1e-07]
[1743659952480,0.34,83393.0,83386.0,1e-07]
[1743659952683,0.34,83393.0,83367.0,0.0001685]
[1743659952684,0.579871,83378.0,83367.0,0.0001685]
[1743659952889,0.8800466,83378.0,83367.0,0.0001685]
[1743659953120,1.31954895,83378.0,83367.0,0.0001685]
[1743659953333,1.36494895,83378.0,83367.0,0.0001685]
[1743659954391,0.251895,83368.0,83367.0,1e-06]
[1743659954592,0.7086506,83368.0,83367.0,1e-06]
[1743659954800,1.13592486,83368.0,83367.0,1e-06]
[1743659955826,1.18247081,83368.0,83367.0,1e-06]
[1743659956249,1.19124668,83368.0,83367.0,1e-06]
[1743659957090,1.20330859,83368.0,83367.0,1e-06]
[1743659958937,1.22735856,83368.0,83367.0,1e-06]
[1743659959382,1.20330859,83368.0,83367.0,1e-06]
[1743659961674,2.28278859,83368.0,83367.0,1e-06]
[1743659968719,2.41858859,83368.0,83367.0,1e-06]
[1743659973062,2.43812944,83368.0,83367.0,1e-06]
[1743659978344,0.591954,83348.0,83345.0,0.0001685]
[1743659978548,0.8449496,83348.0,83345.0,0.0001685]
[1743659978761,0.85743514,83348.0,83345.0,0.0001685]
[1743659983103,0.72119514,83348.0,83345.0,0.0001685]
[1743659983311,0.85743514,83348.0,83345.0,0.0001685]
[1743659983517,0.72119514,83348.0,83345.0,0.0001685]
[1743659983726,0.85743514,83348.0,83345.0,0.0001685]
[1743659984365,0.72119514,83348.0,83345.0,0.0001685]
[1743659984577,0.85743514,83348.0,83345.0,0.0001685]
[1743659990734,0.85743514,83348.0,83317.0,0.2402125]
[1743659990735,0.23845658,83330.0,83323.0,0.15590478]
[1743659990947,0.01242022,83329.0,83323.0,0.16790578]
[1743659992013,0.01246614,83329.0,83323.0,0.16790578]
[1743659993264,0.240015,83328.0,83323.0,0.16790578]
[1743659993687,0.240015,83328.0,83324.0,0.0499]
[1743659993885,0.240023,83326.0,83324.0,0.0499]
[1743659994289,0.01241863,83325.0,83324.0,0.0499]
[1743659995757,0.01035045,83325.0,83324.0,0.0499]
[1743659996904,0.01035045,83325.0,83324.0,0.06430112]
[1743659997108,4.592e-05,83329.0,83327.0,0.252017]
[1743659997495,0.01034329,83328.0,83327.0,0.252017]
[1743659997919,4.592e-05,83329.0,83327.0,0.252017]
[1743659998279,0.01034329,83328.0,83327.0,0.252017]
[1743659998631,4.592e-05,83329.0,83327.0,0.252017]
[1743659999193,0.01034329,83328.0,83327.0,0.252017]
[1743659999658,4.592e-05,83329.0,83327.0,0.252017]
[1743660000041,0.01034329,83328.0,83327.0,0.252017]
[1743660000243,0.01034329,83328.0,83327.0,0.251737]
[1743660000456,0.01034329,83328.0,83327.0,0.296837]
[1743660000661,0.01034329,83328.0,83327.0,0.342137]
[1743660002144,0.01034329,83328.0,83327.0,0.3423055]
[1743660006563,0.01034329,83328.0,83327.0,0.2970055]
[1743660007403,0.01034329,83328.0,83327.0,0.0452685]
[1743660007608,0.01034329,83328.0,83327.0,0.0001685]
[1743660007807,0.02234329,83328.0,83327.0,0.0001685]
[1743660010405,0.13909889,83328.0,83327.0,0.0001685]
[1743660014456,0.13943609,83328.0,83327.0,0.0001685]
[1743660018997,0.01068049,83328.0,83327.0,0.0121685]
[1743660019191,0.01068049,83328.0,83327.0,0.0001685]
[1743660019402,0.02268049,83328.0,83327.0,0.0001685]
[1743660019605,0.13943609,83328.0,83327.0,0.0001685]
[1743660022728,0.01068049,83328.0,83327.0,0.0001685]
[1743660022937,0.02268049,83328.0,83327.0,0.0001685]
[1743660024327,0.13943609,83328.0,83327.0,0.0001685]
[1743660027816,0.65110989,83328.0,83327.0,5e-07]
[1743660028013,1.14756077,83328.0,83327.0,5e-07]
[1743660028187,1.15256077,83328.0,83327.0,5e-07]
[1743660028388,1.11740258,83328.0,83327.0,5e-07]
[1743660028590,1.02378793,83328.0,83327.0,5e-07]
[1743660029015,0.98663573,83328.0,83327.0,5e-07]
[1743660029704,0.98663573,83328.0,83311.0,0.004]
[1743660029705,0.34,83317.0,83311.0,0.004]
[1743660029897,0.012003,83312.0,83311.0,0.004]
[1743660030101,0.6052786,83312.0,83311.0,0.004]
[1743660030227,0.85398478,83312.0,83311.0,0.004]
[1743660031946,0.86280402,83312.0,83311.0,0.004]
[1743660033309,0.72628402,83312.0,83311.0,0.004]
[1743660033512,0.86276402,83312.0,83311.0,0.004]
[1743660039180,0.86276402,83312.0,83311.0,0.0041686]
[1743660041424,0.72628402,83312.0,83311.0,0.0041686]
[1743660042142,0.60070918,83312.0,83311.0,0.0041686]
[1743660042997,0.71746478,83312.0,83311.0,0.0041686]
[1743660043413,0.80816478,83312.0,83311.0,0.0041686]
[1743660045422,0.80816478,83312.0,83311.0,0.0041686]
[1743660054390,0.94460478,83312.0,83311.0,0.0041686]
[1743660056105,0.95086149,83312.0,83311.0,0.0041686]
[1743660057380,0.90536149,83312.0,83311.0,0.0041686]
[1743660059961,0.72372149,83312.0,83311.0,0.0041686]
[1743660060577,0.00864518,83312.0,83311.0,0.0161716]
[1743660060778,0.02064818,83312.0,83311.0,0.0503686]
[1743660060981,0.012003,83312.0,83311.0,0.0503686]
[1743660061393,0.00846248,83312.0,83311.0,0.06987399]
[1743660061592,0.00846248,83312.0,83311.0,0.08187699]
[1743660061815,0.0003372,83314.0,83311.0,0.32193999]
[1743660062036,0.00846408,83312.0,83311.0,0.32193999]
[1743660062234,0.0003372,83314.0,83313.0,0.059802]
[1743660062686,0.0003372,83314.0,83313.0,0.0478]
[1743660062891,0.0003372,83314.0,83313.0,0.059802]
[1743660063104,0.00883552,83314.0,83313.0,0.059802]
[1743660063324,0.0003372,83314.0,83313.0,0.059802]
[1743660063544,0.0003372,83314.0,83313.0,0.07930739]
[1743660063749,0.00883552,83314.0,83313.0,0.07930739]
[1743660065638,0.0003372,83314.0,83313.0,0.07930739]
[1743660066525,0.00883393,83314.0,83313.0,0.06730539]
[1743660067211,0.00883393,83314.0,83313.0,0.07930739]
[1743660067619,0.00883393,83314.0,83313.0,0.06730407]
[1743660070077,0.0003372,83314.0,83313.0,0.06730407]
[1743660070521,0.00898653,83314.0,83313.0,0.06730407]
[1743660075102,0.00898653,83314.0,83313.0,0.01950407]
[1743660075805,0.00898653,83314.0,83313.0,0.00750207]
[1743660077804,0.00898653,83314.0,83313.0,0.01950407]
[1743660079118,0.0003372,83314.0,83313.0,0.01950407]
[1743660079470,0.00897995,83314.0,83313.0,0.01950407]
[1743660080657,0.0003372,83314.0,83313.0,0.01950407]
[1743660080999,0.0003372,83314.0,83313.0,0.07080446]
[1743660082854,0.0003372,83314.0,83313.0,0.08280607]
[1743660083458,0.0003372,83314.0,83313.0,0.49740607]
[1743660083661,0.0003372,83314.0,83313.0,0.49500568]
[1743660085597,0.0003372,83314.0,83313.0,0.61176128]
[1743660086583,0.0003372,83314.0,83313.0,0.61192978]
[1743660092551,0.0003372,83314.0,83313.0,1.69196978]
[1743660098618,0.0003372,83314.0,83313.0,1.82864978]
[1743660102801,0.0003372,83314.0,83313.0,1.77974978]
[1743660104090,0.0003372,83314.0,83313.0,1.76774817]
[1743660105244,0.0003372,83314.0,83313.0,1.76762817]
[1743660105531,0.0003372,83314.0,83313.0,1.65087257]
[1743660107042,0.0003372,83314.0,83313.0,0.57083257]
[1743660108375,0.0003372,83314.0,83313.0,0.58283233]
[1743660108586,0.0003372,83314.0,83313.0,0.69958793]
[1743660109551,0.0003372,83314.0,83313.0,0.8067267]
[1743660111932,0.0003372,83314.0,83313.0,0.8518267]
[1743660113110,0.0003372,83314.0,83313.0,0.75922878]
[1743660113322,2e-07,83314.0,83313.0,1.09922878]
[1743660114144,0.0003372,83328.0,83327.0,0.252018]
[1743660115687,0.0003372,83328.0,83327.0,0.27151983]
[1743660117925,0.0003372,83328.0,83327.0,0.01950183]
[1743660118102,0.0943372,83328.0,83327.0,0.01950183]
[1743660118311,0.10311846,83328.0,83327.0,0.01950183]
[1743660118775,0.0943372,83328.0,83327.0,0.01950183]
[1743660119430,0.10314604,83328.0,83327.0,0.01950183]
[1743660120413,0.10314604,83328.0,83327.0,0.03150183]
[1743660121879,0.0943372,83328.0,83327.0,0.03150183]
[1743660122295,0.0943372,83328.0,83327.0,0.03525177]
[1743660122675,0.0473372,83328.0,83327.0,0.03525177]
[1743660122874,0.0003372,83328.0,83327.0,0.03765186]
[1743660123682,0.0003372,83328.0,83327.0,0.03525177]
[1743660123888,0.0003372,83328.0,83327.0,0.03765146]
[1743660124272,0.0003372,83328.0,83327.0,0.56900706]
[1743660124476,0.0003372,83328.0,83327.0,0.56660737]
[1743660125435,0.0003372,83328.0,83327.0,0.67432937]
[1743660127431,0.0003372,83328.0,83327.0,0.69365377]
[1743660127614,0.0003372,83328.0,83327.0,0.55757377]
[1743660127820,0.0003372,83328.0,83327.0,0.69369377]
[1743660128293,0.0003372,83328.0,83327.0,0.58222183]
[1743660130367,0.0003372,83328.0,83327.0,0.58597126]
[1743660131629,0.0003372,83328.0,83327.0,0.58222183]
[1743660132066,0.0003372,83328.0,83327.0,0.58210183]
[1743660136170,0.0003372,83328.0,83327.0,0.43410183]
[1743660136374,0.0457372,83328.0,83327.0,0.44610183]
[1743660137849,0.0457372,83328.0,83327.0,0.43410183]
[1743660138093,0.05460813,83328.0,83327.0,0.43410183]
[1743660139688,0.05460813,83328.0,83327.0,0.44610183]
[1743660139886,0.0003372,83328.0,83327.0,0.44610183]
[1743660140165,0.0003372,83328.0,83327.0,0.03150183]
[1743660140368,0.0003372,83328.0,83327.0,0.03390171]
[1743660141835,0.0003372,83328.0,83327.0,0.03150183]
[1743660142852,0.0003372,83328.0,83327.0,0.03390165]
[1743660143331,0.0003372,83328.0,83327.0,0.03150183]
[1743660144066,0.0003372,83328.0,83327.0,0.02998148]
[1743660152420,0.0003372,83328.0,83327.0,0.01798148]
[1743660152798,0.0003372,83328.0,83327.0,0.02998148]
[1743660155564,0.0003372,83328.0,83327.0,0.01798148]
[1743660156134,0.0003372,83328.0,83327.0,0.25799948]
[1743660156349,0.0003372,83328.0,83327.0,0.26999948]
[1743660157989,0.0003372,83328.0,83327.0,0.25799972]
[1743660159247,0.0003372,83328.0,83327.0,0.25816812]
[1743660159966,0.00012118,83328.0,83327.0,0.25816812]
[1743660160170,0.00012118,83328.0,83327.0,0.27016757]
[1743660164160,0.00012118,83328.0,83327.0,0.38692317]
[1743660164371,0.00012118,83328.0,83327.0,0.43252317]
[1743660164547,0.00012118,83328.0,83327.0,0.44706402]
[1743660165395,4.592e-05,83329.0,83328.0,0.352]
[1743660165396,1e-07,83329.0,83328.0,0.352]
[1743660165599,1e-07,83329.0,83328.0,0.8833556]
[1743660165980,1e-07,83329.0,83328.0,0.90133677]
[1743660166701,1e-07,83329.0,83328.0,0.91587762]
[1743660167048,1e-07,83329.0,83328.0,0.92087762]
[1743660167449,1e-07,83329.0,83328.0,0.91587762]
[1743660167669,1e-07,83329.0,83328.0,1.01862746]
[1743660167871,1e-07,83329.0,83328.0,1.02362746]
[1743660168099,1e-07,83329.0,83328.0,1.01862746]
[1743660168310,1e-07,83329.0,83328.0,1.04862746]
[1743660168740,0.0941,83359.0,83358.0,0.251924]
[1743660168962,0.09414608,83359.0,83358.0,0.251924]
[1743660169932,0.09414608,83359.0,83358.0,0.25790572]
[1743660171160,0.09448288,83359.0,83358.0,0.25790572]
[1743660172924,0.04758288,83359.0,83358.0,0.25790572]